fUST/lending_fUST_20250308
["ID","MTS","AMOUNT","RATE_DAILY","PERIOD"]
[355625576,1741405842073,-500.0,0.00054794,120]
[355625577,1741405842082,-500.0,0.00054794,120]
[355625578,1741405842092,-500.0,0.00054794,120]
[355625579,1741405842102,-500.0,0.00054794,120]
[355625580,1741405842112,-500.0,0.00054794,120]
[355625581,1741405842122,-500.0,0.00054794,120]
[355625582,1741405842131,-171.162332,0.00054794,120]
[355625583,1741405842142,-506.45058787,0.00054794,120]
[355625584,1741405842152,-500.0,0.00054794,120]
[355625585,1741405842162,-584.90432183,0.00054794,120]
[355625586,1741405842172,-500.0,0.00054794,120]
[355625587,1741405842182,-701.11,0.00054794,120]
[355625588,1741405842192,-9999.0,0.00054794,2]
[355625589,1741405842203,-500.0,0.00054794,120]
[355625590,1741405842213,-1433.160284,0.00054795,7]
[355625591,1741405842222,-1433.160284,0.00054795,7]
[355625592,1741405842231,-1433.160284,0.00054795,7]
[355625593,1741405842242,-1433.160277,0.00054795,7]
[355625594,1741405842252,-150.11434886,0.00054795,15]
[355625595,1741405842263,-150.0,0.00054795,15]
[355625596,1741405842274,-2637.5253664,0.00054867,120]
[355625597,1741405842283,-2675.02006213,0.00054867,120]
[355625598,1741405842293,-18357.17552587,0.00054898,120]
[355625599,1741405842303,-200.0,0.00054989,120]
[355625600,1741405842312,-11423.0,0.00055,120]
[355625601,1741405842322,-186.0,0.00055,120]
[355625602,1741405842332,-181.0,0.00055,120]
[355625603,1741405842341,-1008.39307774,0.00055052,15]
[355625604,1741405842351,-1000.0,0.00055052,15]
[355625605,1741405842360,-1000.0,0.00055052,15]
[355625606,1741405842370,-1000.0,0.00055052,14]
[355625607,1741405842379,-816.55450913,0.00055052,15]
[355625608,1741405842389,-1000.0,0.00055052,15]
[355625609,1741405842399,-1004.6639262,0.00055052,15]
[355625610,1741405842408,-917.97348351,0.00055052,14]
[355625611,1741405842418,-1000.0,0.00055052,14]
[355625612,1741405842428,-1000.0,0.00055052,15]
[355625613,1741405842438,-1000.0,0.00055052,2]
[355625614,1741405842447,-1000.0,0.00055052,15]
[355625615,1741405842456,-1000.0,0.00055052,15]
[355625616,1741405842466,-1000.0,0.00055052,15]
[355625617,1741405842476,-1000.0,0.00055052,15]
[355625618,1741405842485,-503.13758744,0.00055052,15]
[355625619,1741405842495,-200.0,0.00055142,120]
[355625620,1741405842505,-250.0,0.00055321,15]
[355625621,1741405842514,-2525.44371103,0.00055342,40]
[355625622,1741405842524,-500.0,0.00055342,120]
[355625623,1741405842533,-495.6535919,0.00055342,120]
[355625624,1741405842543,-500.0,0.00055342,120]
[355625625,1741405842553,-500.0,0.00055342,120]
[355625626,1741405842562,-246.05934575,0.00055342,120]
[355625627,1741405842571,-500.0,0.00055342,120]
[355625628,1741405842581,-500.0,0.00055342,120]
[355625629,1741405842590,-514.33925402,0.00055342,120]
[355625630,1741405842600,-515.51752005,0.00055342,120]
[355625631,1741405842609,-500.0,0.00055342,120]
[355625632,1741405842619,-151.0,0.00055342,30]
[355625633,1741405842628,-500.0,0.00055342,120]
[355625634,1741405842638,-500.0,0.00055342,120]
[355625635,1741405842647,-500.0,0.00055342,120]
[355625636,1741405842657,-159.36395909,0.00055342,2]
[355625637,1741405842668,-833.33,0.00055342,2]
[355625639,1741405842679,-500.0,0.00055342,120]
[355625641,1741405842688,-500.0,0.00055342,120]
[355625642,1741405842698,-833.45,0.00055342,120]
[355625644,1741405842707,-500.0,0.00055342,120]
[355625646,1741405842717,-500.0,0.00055342,120]
[355625647,1741405842726,-500.0,0.00055342,120]
[355625648,1741405842735,-151.0,0.00055342,90]
[355625649,1741405842744,-500.0,0.00055342,120]
[355625650,1741405842754,-500.0,0.00055342,120]
[355625651,1741405842763,-500.0,0.00055342,120]
[355625652,1741405842772,-500.0,0.00055342,120]
[355625653,1741405842781,-500.0,0.00055342,120]
[355625654,1741405842793,-500.0,0.00055342,120]
[355625656,1741405842802,-500.0,0.00055342,120]
[355625657,1741405842812,-3386.38,0.00055342,120]
[355625658,1741405842823,-4182.47,0.00055342,120]
[355625659,1741405842833,-500.0,0.00055342,120]
[355625660,1741405842842,-286.14282872,0.00055342,120]
[355625661,1741405842851,-500.0,0.00055342,120]
[355625662,1741405842860,-500.0,0.00055342,120]
[355625663,1741405842869,-500.0,0.00055342,120]
[355625664,1741405842878,-500.0,0.00055342,120]
[355625665,1741405842889,-500.0,0.00055342,120]
[355625666,1741405842899,-500.0,0.00055342,120]
[355625667,1741405842909,-2567.33,0.00055342,120]
[355625670,1741405842918,-500.0,0.00055342,120]
[355625671,1741405842928,-586.67551706,0.00055342,120]
[355625672,1741405842939,-500.0,0.00055342,120]
[355625673,1741405842948,-500.0,0.00055342,120]
[355625674,1741405842957,-500.0,0.00055342,120]
[355625675,1741405842967,-500.0,0.00055342,120]
[355625676,1741405842978,-500.0,0.00055342,120]
[355625677,1741405842989,-500.0,0.00055342,120]
[355625678,1741405842998,-623.21,0.00055342,120]
[355625679,1741405843007,-500.0,0.00055342,120]
[355625680,1741405843016,-2500.0,0.00055342,120]
[355625681,1741405843025,-751.58,0.00055342,7]
[355625682,1741405843034,-564.66866889,0.00055342,120]
[355625683,1741405843044,-500.0,0.00055342,120]
[355625684,1741405843053,-1000.0,0.00055342,7]
[355625685,1741405843062,-500.0,0.00055342,120]
[355625686,1741405843071,-500.0,0.00055342,120]
[355625687,1741405843081,-821.96,0.00055342,120]
[355625688,1741405843090,-283.40772047,0.00055342,120]
[355625689,1741405843100,-500.0,0.00055342,120]
[355625690,1741405843109,-500.0,0.00055342,120]
[355625691,1741405843119,-3189.75,0.00055342,120]
[355625692,1741405843128,-500.0,0.00055342,120]
[355625693,1741405843137,-500.0,0.00055342,120]
[355625694,1741405843147,-701.11,0.00055342,120]
[355625695,1741405843157,-3420.42987792,0.00055342,2]
[355625756,1741405846215,-67.91236685,0.00049029,120]
[355625767,1741405868908,764.24004938,0.00048523,120]
[355625768,1741405869245,764.24004938,0.00048534,120]
[355625769,1741405869583,192.38839333,0.00048559,120]
[355625770,1741405903365,203.4043045,0.00040672,2]
[355625772,1741405962963,-302.85934486,0.00041996,2]
[355625773,1741405990049,158.258043,0.0003589,2]
[355625784,1741406508396,-262.8202165,0.000475,30]
[355625788,1741406707872,200.0,0.0004,7]
[355625789,1741406733120,-814.00611514,0.00041996,2]
[355625790,1741406733141,-158.258043,0.0004263,2]
[355625791,1741406733163,-421.5972201,0.00043311,2]
[355625792,1741406733317,-200.0,0.00045,7]
[355625793,1741406733341,-391.15149493,0.0004639,28]
[355625794,1741406736076,-1015.63256407,0.0004639,28]
[355625795,1741406736101,-500.0,0.00046473,10]
[355625796,1741406736121,-506.56211497,0.00046473,10]
[355625797,1741406736145,-117.24013289,0.00046473,10]
[355625798,1741406833093,-186.0,0.00045,120]
[355625799,1741406833115,-546.8295736,0.00046373,2]
[355625800,1741406834084,-1698.75597008,0.00046373,2]
[355625801,1741406834114,-359.82771815,0.00046373,120]
[355625802,1741406845093,-880.81420036,0.00046373,120]
[355625803,1741406845116,-500.0,0.00046473,10]
[355625804,1741406845137,-315.78975075,0.00046473,10]
[355625807,1741406954078,-3762.27443824,0.000419,2]
[355625808,1741406954100,-223.0,0.00042,120]
[355625809,1741406954121,-223.0,0.00044,120]
[355625810,1741406963108,-223.0,0.00046,120]
[355625811,1741406963130,-184.21024925,0.00046473,10]
[355625812,1741406963153,-10653.09205423,0.0004649,2]
[355625813,1741406964115,-1557.04914557,0.0004649,2]
[355625814,1741406964136,-233.63,0.0004649,30]
[355625815,1741406964157,-194.69,0.0004649,30]
[355625816,1741406964179,-162.25,0.0004649,30]
[355625817,1741406964202,-811.25,0.0004649,30]
[355625818,1741406964224,-8340.57985443,0.0004649,4]
[355625819,1741406982285,-204.017126,0.0004649,10]
[355625822,1741407015390,-331.44388815,0.0004649,10]
[355626289,1741407038336,-5158.80435807,0.0004649,4]
[355626298,1741407039805,-350.0,0.0004649,10]
[355626344,1741407040668,-12172.5301043,0.0004649,4]
[355626346,1741407040678,-1277.96,0.0004649,10]
[355626348,1741407040688,-877.85045104,0.000465,30]
[355626415,1741407043616,-220.55698591,0.000465,30]
[355626416,1741407045835,-150.0,0.000465,30]
[355626423,1741407046349,158.903238,0.0003589,2]
[355626425,1741407046555,158.903238,0.00042209,2]
[355626426,1741407073888,165.0,0.000422,120]
[355626427,1741407076176,165.0,0.000444,120]
[355626428,1741407092814,-207.48131028,0.0004649,10]
[355626429,1741407117727,-302.85934486,0.0004649,10]
[355626431,1741407136823,-197.14065514,0.0004649,10]
[355626432,1741407158950,-302.85934486,0.0004649,10]
[355626433,1741407210630,-477.17081511,0.000465,40]
[355626434,1741407225812,-204.017126,0.0004639,28]
[355626435,1741407247483,-204.017126,0.00046373,120]
[355626436,1741407265221,-350.0,0.00046373,120]
[355626437,1741407269728,-150.0,0.00046373,120]
[355626438,1741407303180,1144.94307578,0.00020712,2]
[355626440,1741407328847,-150.0,0.00045212,20]
[355626441,1741407334653,150.0,0.0004439,2]
[355626442,1741407387152,659.0,0.00045,2]
[355626443,1741407441067,-169.0,0.0004521,20]
[355626446,1741407636203,195.04297744,0.0004439,2]
[355626447,1741407724731,1004.11,0.0004,2]
[355626448,1741407740658,161.8598825,0.00040089,2]
[355626449,1741407838450,196.0,0.00041,14]
[355626450,1741407838730,196.0,0.00043151,90]
[355626452,1741407931873,506.62184,0.00045,120]
[355626453,1741407937759,150.0,0.0004439,2]
[355626454,1741407951122,-170.0,0.00045418,120]
[355626455,1741407951143,-802.58474361,0.00045518,2]
[355626456,1741407951163,-802.58474361,0.0004585,2]
[355626457,1741407951184,-1703.08410191,0.000461,2]
[355626458,1741407951206,-802.58474363,0.00046174,2]
[355626459,1741407951227,-400.0,0.00046386,5]
[355626460,1741407951249,-1118.91746683,0.00046389,120]
[355626461,1741407951272,-884.83494731,0.0004639,28]
[355626462,1741408031106,-1694.42921894,0.0004649,4]
[355626463,1741408037082,-1996.9611696,0.0004649,4]
[355626464,1741408039088,-11986.2082943,0.0004649,4]
[355626465,1741408040086,-372.80880476,0.0004649,4]
[355626466,1741408043112,-150.40203091,0.0004649,4]
[355626469,1741408116401,5940.06806645,0.000145,2]
[355626470,1741408118108,241.16286145,0.0002877,2]
[355626472,1741408125362,3995.0966593,0.00039533,64]
[355626486,1741408159069,-173.451,0.00045418,120]
[355626487,1741408159091,-218.53575,0.00045418,120]
[355626495,1741408218923,164.357102,0.0003589,2]
[355626496,1741408219126,164.357102,0.0004263,2]
[355626553,1741408232920,-988.80141668,0.0004639,120]
[355626555,1741408232930,-1274.27457348,0.00046399,28]
[355626557,1741408232940,-21176.7572125,0.0004649,4]
[355627128,1741408238755,-1421.10298438,0.0004649,4]
[355627147,1741408238926,-742.73230521,0.0004649,4]
[355627152,1741408238968,180.02865162,0.0004439,2]
[355627351,1741408241051,-0.04962057,0.0004649,4]
[355627354,1741408241068,-237.63600244,0.0004649,4]
[355627356,1741408241078,-1227.55089206,0.0004649,10]
[355627564,1741408243744,-702.63910794,0.0004649,10]
[355627566,1741408243754,-177.61757434,0.0004649,10]
[355627865,1741408246924,-1108.09242566,0.0004649,10]
[355627867,1741408246934,-223.70849593,0.0004649,10]
[355627984,1741408283297,150.0,0.00046,120]
[355627987,1741408406589,5908.8436402,0.00039653,2]
[355627988,1741408433708,-512.85,0.000464,28]
[355627989,1741408438388,171.0,0.00045,90]
[355628005,1741408539833,176.0,0.00045,90]
[355628006,1741408540094,313.71626212,0.0004439,2]
[355628007,1741408572543,1571.35777399,0.00044168,19]
[355628008,1741408603891,1900.0,0.00045,2]
[355628010,1741408620203,1813.10512384,0.00045,2]
[355628011,1741408626200,4919.0,0.00045,120]
[355628012,1741408631377,1692.23144891,0.00045,2]
[355628015,1741408730069,2000.0,0.00045,2]
[355628016,1741408732965,2000.0,0.00045,2]
[355628017,1741408734817,2000.0,0.00045,2]
[355628018,1741408736397,2000.0,0.00045,2]
[355628019,1741408737738,2000.0,0.00045,2]
[355628022,1741408841658,209.14417474,0.0004439,2]
[355628024,1741409006092,150.4,0.00044,2]
[355628025,1741409038542,171.0,0.00045,90]
[355628026,1741409090002,169.28873513,0.00041096,2]
[355628027,1741409097266,2000.0,0.00045,2]
[355628028,1741409098996,2000.0,0.00045,2]
[355628029,1741409102231,2000.0,0.00045,2]
[355628030,1741409143422,150.0,0.000429,2]
[355628031,1741409146323,200.08,0.00045,2]
[355628033,1741409196106,-206.90415627,0.0004596,120]
[355628034,1741409225090,-537.70640722,0.0004596,120]
[355628035,1741409228099,-7550.4225532,0.0004596,120]
[355628036,1741409231096,1208.52,0.00045,120]
[355628037,1741409232111,-152.97421354,0.0004596,120]
[355628038,1741409236990,158.428515,0.0003589,2]
[355628039,1741409237192,158.428515,0.0004263,2]
[355628040,1741409246232,-795.41165328,0.0004596,120]
[355628041,1741409252136,-674.67000717,0.0004596,120]
[355628043,1741409339348,1000.0,0.00045,2]
[355628044,1741409350089,-2597.0,0.0004596,120]
[355628815,1741409444584,150.0,0.0004386,2]
[355628825,1741409500786,2000.0,0.00045,2]
[355628826,1741409530637,2000.0,0.00045,2]
[355628827,1741409533197,2000.0,0.00045,2]
[355628829,1741409626584,1200.1,0.00045,120]
[355628831,1741409638407,172.0,0.00041,14]
[355628832,1741409638731,172.0,0.00043151,90]
[355628834,1741409745953,157.99701003,0.0004386,2]
[355628835,1741409748559,153.0,0.00043,2]
[355628836,1741409760370,1057.12002624,0.00045,2]
[355628837,1741409872362,262.96337673,0.00041096,2]
[355628840,1741410047198,150.0,0.0004386,2]
[355628843,1741410239129,172.0,0.00041,14]
[355628844,1741410279492,2312.27539807,0.00045,2]
[355628845,1741410293411,49641.741957,0.0004,2]
[355628847,1741410334488,49840.0,0.00035,2]
[355628857,1741410429118,-166.395446,0.0003589,2]
[355628858,1741410429139,-1698.75597008,0.000408,2]
[355628859,1741410429161,-146.17592843,0.000409,2]
[355628860,1741410445097,-3.82407157,0.000409,2]
[355628861,1741410445120,-166.395446,0.0004263,2]
[355628862,1741410445143,-4126.27233351,0.000458,120]
[355628863,1741410454083,-1906.49596013,0.000458,120]
[355628892,1741410545083,-4900.0,0.0004,2]
[355628893,1741410546089,-2509.41543345,0.0004,2]
[355628894,1741410546116,-203.4043045,0.00041807,2]
[355628895,1741410577644,160.0,0.0002,3]
[355628903,1741410632166,-550.0,0.00045789,5]
[355628904,1741410632176,-1525.62,0.0004579,10]
[355628905,1741410632186,-1271.35,0.0004579,10]
[355628906,1741410632195,-5578.66774013,0.000458,40]
[355628907,1741410632205,-2286.85830347,0.000458,40]
[355628908,1741410632214,-3571.92927853,0.000458,120]
[355628909,1741410632223,-180372.94730974,0.000458,120]
[355628910,1741410632232,-1102.27750602,0.000459,120]
[355628911,1741410632241,-2184.40056885,0.0004596,120]
[355628912,1741410632253,-1000.0,0.00046,120]
[355628913,1741410632262,-606.33383687,0.00046367,14]
[355628914,1741410632271,-816.39,0.00046471,30]
[355628915,1741410632280,-22399.3642188,0.00046471,4]
[355628916,1741410632290,-467.05827387,0.00046473,10]
[355628917,1741410632299,-503.7072046,0.00046473,2]
[355628919,1741410632309,-500.0,0.00046473,2]
[355628921,1741410632318,-158.74157682,0.00046473,2]
[355628923,1741410632327,-500.0,0.00046473,10]
[355628925,1741410632336,-500.0,0.00046473,10]
[355628927,1741410632345,-254.65713877,0.00046473,10]
[355628928,1741410632355,-500.0,0.00046473,10]
[355628929,1741410632364,-151.0,0.00046473,120]
[355628930,1741410632374,-151.0,0.00046476,120]
[355628931,1741410632384,-151.0,0.00046476,120]
[355628932,1741410632394,-151.0,0.00046476,120]
[355628933,1741410632404,-151.0,0.00046476,120]
[355628934,1741410632413,-159.387747,0.00046476,120]
[355628935,1741410632423,-500.0,0.00046481,120]
[355628936,1741410632432,-533.83615125,0.00046481,2]
[355628937,1741410632442,-500.0,0.00046481,2]
[355628938,1741410632453,-533.83615125,0.00046481,2]
[355628939,1741410632467,-352.36083616,0.00046481,120]
[355628940,1741410632479,-500.0,0.00046481,2]
[355628941,1741410632489,-533.83615125,0.00046481,2]
[355628942,1741410632499,-500.0,0.00046481,2]
[355628943,1741410632508,-533.83615125,0.00046481,2]
[355628944,1741410632518,-500.0,0.00046481,2]
[355628945,1741410632527,-533.83615125,0.00046481,2]
[355628946,1741410632539,-500.0,0.00046481,2]
[355628947,1741410632549,-500.0,0.00046481,2]
[355628948,1741410632559,-500.0,0.00046481,2]
[355628949,1741410632568,-533.83615125,0.00046481,2]
[355628950,1741410632578,-500.0,0.00046481,2]
[355628951,1741410632587,-533.83615125,0.00046481,2]
[355628952,1741410632597,-500.0,0.00046481,2]
[355628953,1741410632606,-533.83615125,0.00046481,2]
[355628954,1741410632615,-500.0,0.00046481,2]
[355628955,1741410632625,-533.83615125,0.00046481,2]
[355628956,1741410632635,-500.0,0.00046481,2]
[355628957,1741410632644,-533.83615125,0.00046481,2]
[355628958,1741410632654,-500.0,0.00046481,2]
[355628959,1741410632663,-533.83615125,0.00046481,2]
[355628960,1741410632673,-500.0,0.00046481,2]
[355628961,1741410632682,-500.0,0.00046481,2]
[355628962,1741410632692,-533.83615125,0.00046481,2]
[355628963,1741410632702,-500.0,0.00046481,2]
[355628964,1741410632712,-533.83615125,0.00046481,2]
[355628965,1741410632722,-500.0,0.00046481,2]
[355628966,1741410632732,-533.83615125,0.00046481,2]
[355628967,1741410632741,-500.0,0.00046481,2]
[355628968,1741410632751,-500.0,0.00046481,2]
[355628969,1741410632761,-500.0,0.00046481,2]
[355628970,1741410632770,-500.0,0.00046481,2]
[355628971,1741410632781,-533.83615125,0.00046481,2]
[355628972,1741410632791,-500.0,0.00046481,2]
[355628973,1741410632800,-533.83615125,0.00046481,2]
[355628974,1741410632810,-500.0,0.00046481,2]
[355628975,1741410632820,-533.83615125,0.00046481,2]
[355628976,1741410632830,-500.0,0.00046481,2]
[355628977,1741410632840,-533.83615125,0.00046481,2]
[355628978,1741410632849,-533.83615125,0.00046481,2]
[355628979,1741410632858,-500.0,0.00046481,2]
[355628980,1741410632869,-533.83615125,0.00046481,2]
[355628981,1741410632879,-500.0,0.00046481,2]
[355628982,1741410632888,-533.83615125,0.00046481,2]
[355628983,1741410632898,-500.0,0.00046481,2]
[355628984,1741410632907,-533.83615125,0.00046481,2]
[355628985,1741410632917,-500.0,0.00046481,2]
[355628986,1741410632927,-533.83615125,0.00046481,2]
[355628987,1741410632937,-533.83615125,0.00046481,2]
[355628988,1741410632947,-500.0,0.00046481,2]
[355628989,1741410632956,-533.83615125,0.00046481,2]
[355628990,1741410632966,-533.83615125,0.00046481,2]
[355628991,1741410632975,-533.83615125,0.00046481,2]
[355628992,1741410632985,-500.0,0.00046481,2]
[355628993,1741410632995,-533.83615125,0.00046481,2]
[355628994,1741410633005,-533.83615125,0.00046481,2]
[355628995,1741410633015,-533.83615125,0.00046481,2]
[355628996,1741410633024,-500.0,0.00046481,2]
[355628997,1741410633034,-533.83615125,0.00046481,2]
[355628998,1741410633044,-533.83615125,0.00046481,2]
[355628999,1741410633054,-533.83615125,0.00046481,2]
[355629000,1741410633064,-533.83615125,0.00046481,2]
[355629001,1741410633074,-533.83615125,0.00046481,2]
[355629002,1741410633084,-533.83615125,0.00046481,2]
[355629003,1741410633093,-533.83615125,0.00046481,2]
[355629004,1741410633103,-533.83615125,0.00046481,2]
[355629005,1741410633113,-533.83615125,0.00046481,2]
[355629006,1741410633122,-533.83615125,0.00046481,2]
[355629007,1741410633132,-533.83615125,0.00046481,2]
[355629008,1741410633142,-533.83615125,0.00046481,2]
[355629009,1741410633152,-533.83615125,0.00046481,2]
[355629010,1741410633161,-533.83615125,0.00046481,2]
[355629011,1741410633171,-533.83615125,0.00046481,2]
[355629012,1741410633180,-533.83615125,0.00046481,2]
[355629013,1741410633190,-533.83615125,0.00046481,2]
[355629014,1741410633199,-533.83615125,0.00046481,2]
[355629015,1741410633209,-533.83615125,0.00046481,2]
[355629016,1741410633219,-533.83615125,0.00046481,2]
[355629017,1741410633230,-533.83615125,0.00046481,2]
[355629018,1741410633239,-533.83615125,0.00046481,2]
[355629019,1741410633249,-533.83615125,0.00046481,2]
[355629020,1741410633258,-1190.57675926,0.00046481,2]
[355629021,1741410633267,-1190.57675926,0.00046481,2]
[355629022,1741410633277,-500.0,0.00046481,2]
[355629023,1741410633286,-1190.57675926,0.00046481,2]
[355629024,1741410633295,-500.0,0.00046481,2]
[355629025,1741410633304,-1190.57675926,0.00046481,2]
[355629026,1741410633313,-500.0,0.00046481,2]
[355629027,1741410633323,-1190.57675926,0.00046481,2]
[355629028,1741410633332,-1190.57675926,0.00046481,2]
[355629029,1741410633342,-500.0,0.00046481,2]
[355629030,1741410633351,-1190.57675926,0.00046481,2]
[355629031,1741410633361,-1190.57675926,0.00046481,2]
[355629032,1741410633371,-485.12,0.00046481,2]
[355629033,1741410633381,-500.0,0.00046481,2]
[355629034,1741410633390,-1190.57675926,0.00046481,2]
[355629035,1741410633399,-1190.57675926,0.00046481,2]
[355629036,1741410633409,-1190.57675926,0.00046481,2]
[355629037,1741410633418,-1190.57675926,0.00046481,2]
[355629038,1741410633428,-1190.57675926,0.00046481,2]
[355629039,1741410633437,-1190.57675926,0.00046481,2]
[355629040,1741410633447,-1190.57675926,0.00046481,2]
[355629041,1741410633458,-1190.57675926,0.00046481,2]
[355629042,1741410633471,-1190.57675926,0.00046481,2]
[355629043,1741410633481,-1190.57675926,0.00046481,2]
[355629044,1741410633490,-1190.57675926,0.00046481,2]
[355629045,1741410633500,-1190.57675926,0.00046481,2]
[355629046,1741410633511,-1190.57675926,0.00046481,2]
[355629047,1741410633521,-1190.57675926,0.00046481,2]
[355629048,1741410633530,-1190.57675926,0.00046481,2]
[355629049,1741410633541,-1190.57675926,0.00046481,2]
[355629050,1741410633660,-1190.57675926,0.00046481,2]
[355629051,1741410633670,-1190.57675926,0.00046481,2]
[355629052,1741410633679,-1190.57675926,0.00046481,2]
[355629053,1741410633689,-1190.57675926,0.00046481,2]
[355629054,1741410633699,-1190.57675926,0.00046481,2]
[355629055,1741410633708,-1190.57675926,0.00046481,2]
[355629056,1741410633718,-1190.57675926,0.00046481,2]
[355629057,1741410633728,-1190.57675926,0.00046481,2]
[355629058,1741410633738,-1190.57675931,0.00046481,2]
[355629059,1741410633747,-1190.57675931,0.00046481,2]
[355629060,1741410633757,-1190.5767593,0.00046481,2]
[355629061,1741410633767,-1007.07,0.00046483,120]
[355629062,1741410633776,-151.0,0.00046484,120]
[355629063,1741410633785,-151.0,0.00046484,120]
[355629064,1741410633794,-157.128003,0.00046484,120]
[355629065,1741410633804,-151.0,0.00046484,120]
[355629066,1741410633814,-151.0,0.00046484,120]
[355629067,1741410633823,-151.0,0.00046484,120]
[355629068,1741410633833,-151.0,0.00046484,120]
[355629069,1741410633843,-151.0,0.00046484,120]
[355629070,1741410633853,-151.0,0.00046484,120]
[355629071,1741410633863,-151.0,0.00046484,120]
[355629072,1741410633872,-151.0,0.00046484,120]
[355629073,1741410633882,-151.0,0.00046484,120]
[355629074,1741410633892,-151.0,0.00046484,120]
[355629075,1741410633901,-171.961054,0.00046484,120]
[355629076,1741410633910,-151.0,0.00046485,120]
[355629077,1741410633920,-151.0,0.00046485,120]
[355629078,1741410633929,-151.0,0.00046486,120]
[355629079,1741410633939,-151.0,0.00046486,120]
[355629080,1741410633948,-151.0,0.00046486,120]
[355629081,1741410633958,-151.0,0.00046486,120]
[355629082,1741410633967,-170.0,0.00046487,30]
[355629083,1741410633977,-151.0,0.00046487,120]
[355629084,1741410633988,-151.0,0.00046487,120]
[355629085,1741410633997,-151.0,0.00046487,120]
[355629086,1741410634008,-154.933914,0.00046487,120]
[355629087,1741410634018,-157.403513,0.00046489,120]
[355629088,1741410634027,-168.8,0.0004649,2]
[355629089,1741410634038,-168.8,0.0004649,2]
[355629090,1741410634047,-168.8,0.0004649,2]
[355629091,1741410634057,-168.8,0.0004649,2]
[355629092,1741410634067,-168.8,0.0004649,2]
[355629093,1741410634077,-168.81509179,0.0004649,2]
[355629094,1741410634087,-44798.7284376,0.0004649,4]
[355629095,1741410634096,-150.0,0.00046495,30]
[355629096,1741410634106,-99651.59256305,0.000465,30]
[355629097,1741410634115,-416.66666667,0.000465,30]
[355629098,1741410634126,-165.0,0.000466,120]
[355629099,1741410634136,-165.0,0.000467,120]
[355629100,1741410634146,-267.95092435,0.000468,30]
[355629101,1741410634156,-1426.72851828,0.000469,2]
[355629102,1741410634165,-416.66666667,0.00046973,10]
[355629103,1741410634176,-500.0,0.00046973,2]
[355629104,1741410634186,-228.78640237,0.00046973,2]
[355629105,1741410634196,-166.27088402,0.00046973,2]
[355629106,1741410634206,-500.0,0.00046973,10]
[355629107,1741410634216,-500.0,0.00046973,10]
[355629108,1741410634224,-500.0,0.00046973,10]
[355629109,1741410634234,-500.0,0.00046973,10]
[355629110,1741410634243,-502.81289993,0.00046973,10]
[355629111,1741410634252,-500.0,0.00046973,10]
[355629112,1741410634263,-500.0,0.00046973,10]
[355629113,1741410634272,-500.0,0.00046973,10]
[355629114,1741410634282,-456.17651438,0.00046973,10]
[355629115,1741410634292,-500.0,0.00046973,10]
[355629116,1741410634303,-500.0,0.00046973,10]
[355629117,1741410634313,-509.97536151,0.00046973,10]
[355629118,1741410634324,-500.0,0.00046973,10]
[355629119,1741410634333,-222290.10065177,0.00046989,2]
[355629124,1741410640180,-372.08593591,0.000464,2]
[355629138,1741410643218,-1242.6388196,0.000464,2]
[355629139,1741410643228,-1614.7247555,0.00046523,2]
[355629140,1741410643237,-1614.7247555,0.00046645,2]
[355629141,1741410643247,-1614.7247555,0.00046768,2]
[355629142,1741410643256,-2521.04009254,0.00046989,2]
[355629158,1741410649644,150.0,0.00044889,2]
[355629194,1741411634105,-161.246878,0.0003589,2]